bitfinex-derivatives/quotes_BTCF0:USTF0_20210705
["timestamp","ask_amount","ask_price","bid_price","bid_amount"]
[1625502271662,0.01631404,33673.0,33670.0,0.52481127]
[1625502271862,0.01631404,33673.0,33669.0,0.52481126]
[1625502271863,6.49311041,33671.0,33669.0,0.17486651]
[1625502271963,6.85733041,33671.0,33669.0,0.17486651]
[1625502272062,10.94253041,33671.0,33669.0,0.17486651]
[1625502272213,0.0163139,33670.0,33669.0,0.17486651]
[1625502272315,6.56839637,33670.0,33669.0,0.17486651]
[1625502272517,7.10854725,33670.0,33669.0,0.17486651]
[1625502273471,5.52922943,33670.0,33668.0,0.52451376]
[1625502273971,0.0163142,33669.0,33668.0,0.52451376]
[1625502274178,4.9869879,33669.0,33668.0,0.52451376]
[1625502274673,4.9869879,33669.0,33668.0,0.17478074]
[1625502275177,6.56562851,33669.0,33667.0,0.52454205]
[1625502275574,6.54931431,33669.0,33667.0,0.52454205]
[1625502275675,4.90977411,33668.0,33667.0,0.52454205]
[1625502275826,4.96877411,33668.0,33667.0,0.52454205]
[1625502276078,4.90977411,33668.0,33667.0,0.52454205]
[1625502276177,4.96877411,33668.0,33667.0,0.52454205]
[1625502277581,4.90977411,33668.0,33667.0,0.52454205]
[1625502278136,4.96877411,33668.0,33667.0,0.52454205]
[1625502278285,2.33865694,33668.0,33667.0,2.26937618]
[1625502278886,3.56554175,33668.0,33667.0,1.22197179]
[1625502281594,3.56554175,33668.0,33667.0,0.5237022]
[1625502282896,3.56554175,33668.0,33667.0,1.22191141]
[1625502283796,2.33865694,33668.0,33667.0,1.22191141]
[1625502288355,2.56234694,33668.0,33667.0,1.22191141]
[1625502289257,3.78865919,33668.0,33667.0,1.22191141]
[1625502289708,3.78865919,33668.0,33667.0,0.5237022]
[1625502290359,1.33477193,33668.0,33666.0,0.94073098]
[1625502290461,0.059,33668.0,33666.0,0.24057544]
[1625502290917,2.27762507,33667.0,33666.0,1.29071659]
[1625502291012,2.33662507,33667.0,33666.0,1.29071659]
[1625502291465,2.33662507,33667.0,33666.0,2.51590132]
[1625502292618,2.33662507,33667.0,33666.0,2.5197215]
[1625502294325,2.65087507,33667.0,33666.0,2.5197215]
[1625502294724,2.66714319,33667.0,33666.0,2.5197215]
[1625502294973,3.89364509,33667.0,33666.0,1.46958035]
[1625502295272,3.89364509,33667.0,33666.0,1.46576017]
[1625502295573,3.89364509,33667.0,33666.0,0.76482786]
[1625502296327,3.89364509,33667.0,33666.0,0.76864683]
[1625502296426,3.89364509,33667.0,33666.0,1.11804063]
[1625502297178,3.89364509,33667.0,33666.0,0.76860569]
[1625502298382,3.89364509,33667.0,33666.0,1.11819489]
[1625502300238,3.95264509,33667.0,33666.0,1.11819489]
[1625502300366,3.95264509,33667.0,33666.0,1.11437592]
[1625502300743,3.95264509,33667.0,33666.0,0.24057544]
[1625502300744,5.35473647,33667.0,33666.0,0.24057544]
[1625502304249,6.93155569,33667.0,33666.0,0.24057544]
[1625502304950,6.96676596,33667.0,33666.0,0.24057544]
[1625502305149,6.96676596,33667.0,33662.0,0.24057544]
[1625502305251,6.93155569,33667.0,33662.0,0.24057544]
[1625502305450,0.01627128,33666.0,33662.0,0.24057544]
[1625502305653,4.90445541,33663.0,33659.0,0.5252615]
[1625502305850,5.02245541,33663.0,33659.0,0.5252615]
[1625502306052,0.01627198,33662.0,33659.0,0.5252615]
[1625502306151,0.07527198,33662.0,33659.0,0.5252615]
[1625502306252,0.13427198,33662.0,33659.0,0.5252615]
[1625502306456,4.90102298,33660.0,33657.0,0.3281381]
[1625502306551,5.19501298,33660.0,33657.0,0.3281381]
[1625502306652,5.25401298,33660.0,33657.0,0.3281381]
[1625502306752,0.48115088,33658.0,33657.0,0.3281381]
[1625502306855,0.54015088,33658.0,33657.0,0.3281381]
[1625502306953,0.59915088,33658.0,33657.0,0.3281381]
[1625502307053,0.59915088,33658.0,33657.0,0.24057544]
[1625502307054,5.51549294,33658.0,33657.0,0.24057544]
[1625502308757,4.11554783,33658.0,33657.0,0.24057544]
[1625502309109,4.0992761,33658.0,33657.0,0.24057544]
[1625502310412,9.2850761,33658.0,33657.0,0.24057544]
[1625502312071,9.2850761,33658.0,33657.0,0.50303498]
[1625502312072,8.06010226,33658.0,33657.0,0.50303498]
[1625502312568,8.06010226,33658.0,33657.0,0.24057544]
[1625502313467,8.06010226,33658.0,33657.0,0.32805434]
[1625502314468,9.2833734,33658.0,33657.0,0.24057544]
[1625502317577,8.06010226,33658.0,33657.0,0.24057544]
[1625502319379,8.06010226,33658.0,33657.0,0.5026156]
[1625502319933,8.06010226,33658.0,33657.0,0.85195729]
[1625502320431,8.06010226,33658.0,33657.0,0.5026156]
[1625502321637,9.28562009,33658.0,33657.0,0.5026156]
[1625502322087,8.06010226,33658.0,33657.0,0.85207171]
[1625502322387,8.06010226,33658.0,33657.0,0.76472499]
[1625502322993,8.06010226,33658.0,33657.0,1.11408856]
[1625502323497,6.66036676,33658.0,33657.0,2.51452028]
[1625502323897,6.31003965,33658.0,33657.0,2.51452028]
[1625502324297,6.31003965,33658.0,33657.0,2.5107019]
[1625502324397,6.66037219,33658.0,33657.0,2.5107019]
[1625502324697,8.0613075,33658.0,33657.0,0.76463245]
[1625502325199,8.0613075,33658.0,33657.0,1.11412912]
[1625502325698,9.28754773,33658.0,33657.0,0.76463245]
[1625502325998,9.28754773,33658.0,33657.0,1.46380892]
[1625502325999,8.0613075,33658.0,33657.0,1.46380892]
[1625502326499,8.07757846,33658.0,33657.0,1.46380892]
[1625502326952,9.30386924,33658.0,33657.0,0.85261496]
[1625502327301,10.70585738,33658.0,33657.0,0.85261496]
[1625502327703,10.70585738,33658.0,33657.0,0.76518074]
[1625502328253,10.70585738,33658.0,33657.0,0.85267084]
[1625502328605,10.70585738,33658.0,33657.0,0.85648963]
[1625502329106,10.70585738,33658.0,33657.0,0.50675276]
[1625502329558,10.70585738,33658.0,33657.0,0.24439423]
[1625502329659,10.70585738,33658.0,33657.0,0.24057544]
[1625502330212,10.70585738,33658.0,33657.0,0.24439425]
[1625502331561,9.30386924,33658.0,33657.0,1.4697972]
[1625502334868,9.30386924,33658.0,33657.0,0.76956694]
[1625502335671,10.7059992,33658.0,33657.0,1.295089]
[1625502335769,10.7059992,33658.0,33657.0,0.85750332]
[1625502336170,9.30386924,33658.0,33657.0,1.12014924]
[1625502336622,10.70601515,33658.0,33657.0,1.12014924]
[1625502337374,9.30386924,33658.0,33657.0,1.12014924]
[1625502339382,9.30386924,33658.0,33657.0,0.7698012]
[1625502339927,4.11806924,33658.0,33657.0,1.46909241]
[1625502342582,3.8184938,33658.0,33657.0,1.46909241]
[1625502342684,3.8184938,33658.0,33657.0,1.70227241]
[1625502342884,3.7594938,33658.0,33657.0,2.00184785]
[1625502343084,0.78193517,33658.0,33657.0,4.26916884]
[1625502343537,0.87083793,33658.0,33657.0,5.66413931]
[1625502343733,1.05183076,33661.0,33657.0,5.66413931]
[1625502343863,1.05183076,33661.0,33657.0,5.73334681]
[1625502344000,1.05183076,33661.0,33658.0,0.00381544]
[1625502344190,0.08780312,33662.0,33660.0,4.87509472]
[1625502344486,0.08780312,33662.0,33660.0,4.93409472]
[1625502344586,0.08780312,33662.0,33661.0,0.01019518]
[1625502344786,0.24057544,33663.0,33661.0,5.28882191]
[1625502344887,0.24057544,33663.0,33662.0,0.24057544]
[1625502345085,0.24057544,33663.0,33662.0,0.30977209]
[1625502345186,0.24057544,33663.0,33662.0,0.37258725]
[1625502345387,0.24057544,33663.0,33662.0,5.59363009]
[1625502346089,1.05174878,33669.0,33662.0,5.59363009]
[1625502346388,1.05142688,33670.0,33668.0,1.21746801]
[1625502346490,1.05142688,33670.0,33668.0,2.53668202]
[1625502346693,1.05142688,33670.0,33669.0,4.5617]
[1625502346889,1.05142688,33670.0,33669.0,5.34624095]
[1625502346991,1.4018441,33673.0,33669.0,8.99825648]
[1625502346992,1.05136183,33673.0,33669.0,8.99825648]
[1625502347390,1.05136183,33673.0,33670.0,0.00381452]
[1625502347491,2.0351653,33674.0,33672.0,2.26205783]
[1625502347692,2.0351653,33674.0,33672.0,2.32105783]
[1625502347797,1.0514653,33674.0,33672.0,2.32105783]
[1625502347896,1.0514653,33674.0,33673.0,2.26228446]
[1625502348397,1.05145485,33675.0,33673.0,2.26228446]
[1625502348497,1.11045485,33675.0,33673.0,2.26228446]
[1625502348897,1.11045485,33675.0,33674.0,1.52438475]
[1625502349748,0.059,33675.0,33674.0,1.52438475]
[1625502352362,0.118,33675.0,33674.0,0.48115088]
[1625502352760,0.059,33675.0,33674.0,0.48115088]
[1625502353160,0.118,33675.0,33674.0,0.48115088]
[1625502353362,1.16776631,33675.0,33674.0,0.48115088]
[1625502353915,3.7922527,33675.0,33674.0,0.48115088]
[1625502358919,2.39253829,33675.0,33674.0,0.48115088]
[1625502361172,1.16776631,33675.0,33674.0,0.48115088]
[1625502363176,0.118,33675.0,33674.0,0.48115088]
[1625502363779,0.36149,33675.0,33674.0,0.48115088]
[1625502364079,2.6338704,33675.0,33674.0,0.48115088]
[1625502365492,2.6338704,33675.0,33669.0,0.24057544]
[1625502366383,0.01627382,33674.0,33669.0,0.24057544]
[1625502366482,0.07527382,33674.0,33669.0,0.24057544]
[1625502366582,0.13427382,33674.0,33669.0,0.24057544]
[1625502366683,3.67101977,33670.0,33669.0,0.24057544]
[1625502366882,3.78901977,33670.0,33669.0,0.24057544]
[1625502367083,4.27017065,33670.0,33669.0,0.24057544]
[1625502367284,5.84348305,33670.0,33669.0,0.24057544]
[1625502367886,5.85975712,33670.0,33669.0,0.24057544]
[1625502370441,5.85975712,33670.0,33666.0,0.2929]
[1625502370793,0.01628284,33669.0,33666.0,0.2929]
[1625502370992,0.13428284,33669.0,33663.0,0.24057544]
[1625502371092,0.24057544,33664.0,33663.0,0.24057544]
[1625502371191,0.29957544,33664.0,33663.0,0.24057544]
[1625502371292,0.62195544,33664.0,33663.0,0.24057544]
[1625502371652,4.2941193,33664.0,33663.0,0.24057544]
[1625502374146,2.89522471,33664.0,33663.0,0.24057544]
[1625502376756,1.67117009,33664.0,33663.0,0.24057544]
[1625502376856,1.40779009,33664.0,33663.0,0.51747544]
[1625502378165,2.6320907,33664.0,33663.0,0.51747544]
[1625502379013,1.40779009,33664.0,33663.0,0.51747544]
[1625502381214,2.63231751,33664.0,33663.0,0.51747544]
[1625502381815,1.40779009,33664.0,33663.0,0.51747544]
[1625502381916,1.34879009,33664.0,33663.0,0.51747544]
[1625502382115,1.40779009,33664.0,33663.0,0.51747544]
[1625502383217,0.35857544,33664.0,33663.0,0.51747544]
[1625502384821,0.29957544,33664.0,33663.0,0.51747544]
[1625502385925,0.35857544,33664.0,33663.0,0.51747544]
[1625502387176,1.40836246,33664.0,33663.0,0.51747544]
[1625502387278,1.40836246,33664.0,33663.0,0.24057544]
[1625502388029,1.16778702,33664.0,33663.0,0.24057544]
[1625502389034,1.18405706,33664.0,33663.0,0.24057544]
[1625502389135,1.48530706,33664.0,33663.0,0.24057544]
[1625502390340,4.11018523,33664.0,33663.0,0.24057544]
[1625502396651,4.11018523,33664.0,33663.0,0.24439153]
[1625502398055,4.11018523,33664.0,33663.0,0.24057544]
[1625502398256,4.11018523,33664.0,33663.0,0.24439163]
[1625502399868,2.71026187,33664.0,33663.0,0.24439163]
[1625502400115,2.65126187,33664.0,33663.0,0.24439163]
[1625502400214,2.35001187,33664.0,33663.0,0.24439163]
[1625502401367,2.40901187,33664.0,33663.0,0.24439163]
[1625502401719,2.35001187,33664.0,33663.0,0.24439163]
[1625502402321,1.12505706,33664.0,33663.0,0.24439163]
[1625502402721,1.18405706,33664.0,33663.0,0.24439163]
[1625502404174,3.11056944,33664.0,33663.0,0.24439163]
[1625502408578,4.51243638,33664.0,33663.0,0.24439163]
[1625502411939,8.49503638,33664.0,33663.0,0.24439163]
[1625502412586,8.49503638,33664.0,33663.0,0.94604485]
[1625502415191,8.49503638,33664.0,33663.0,0.24439163]
[1625502417547,10.07412654,33664.0,33663.0,0.24439163]
[1625502418046,8.49503638,33664.0,33663.0,0.24439163]
[1625502418397,10.07412197,33664.0,33663.0,0.24439163]
[1625502419599,10.36375197,33664.0,33663.0,0.24439163]
[1625502420551,6.38115197,33664.0,33663.0,0.24439163]
[1625502420660,6.09152197,33664.0,33663.0,0.24439163]
[1625502421104,6.09152197,33664.0,33663.0,5.00699163]
[1625502421470,4.51243638,33664.0,33663.0,5.70861321]
[1625502421604,4.51243638,33664.0,33663.0,6.00897321]
[1625502422765,4.49616634,33664.0,33663.0,6.00515702]
[1625502423064,4.453449,33664.0,33663.0,6.00897196]
[1625502423265,6.03467896,33664.0,33663.0,7.06228759]
[1625502423714,4.453449,33664.0,33663.0,8.29062183]
[1625502427524,4.453449,33664.0,33663.0,9.69515003]
[1625502427925,4.394449,33664.0,33663.0,9.69515003]
[1625502428375,4.453449,33664.0,33663.0,9.69515003]
[1625502428524,4.453449,33664.0,33663.0,4.93255003]
[1625502431435,4.453449,33664.0,33663.0,3.52802183]
[1625502431633,4.453449,33664.0,33663.0,3.22766183]
[1625502431935,4.453449,33664.0,33663.0,4.63213787]
[1625502432887,4.744679,33664.0,33663.0,4.63213787]
[1625502433188,4.744679,33664.0,33663.0,3.40380363]
[1625502433291,6.32683219,33664.0,33663.0,1.99932759]
[1625502434189,6.85436175,33664.0,33663.0,2.5260706]
[1625502435643,6.85436175,33664.0,33663.0,1.47275497]
[1625502435743,6.85436175,33664.0,33663.0,1.46894003]
[1625502435946,6.85436175,33664.0,33663.0,1.47275497]
[1625502436750,6.85436175,33664.0,33663.0,1.46894003]
[1625502437702,10.75996175,33664.0,33663.0,1.46894003]
[1625502439007,10.75996175,33664.0,33663.0,0.76731845]
[1625502439707,10.81896175,33664.0,33663.0,0.76731845]
[1625502440763,10.81896175,33664.0,33663.0,0.24057544]
[1625502442669,12.57666888,33664.0,33663.0,0.24057544]
[1625502443118,10.81896175,33664.0,33663.0,0.24057544]
[1625502444224,12.57643338,33664.0,33663.0,0.24057544]
[1625502449381,8.67083338,33664.0,33663.0,0.24057544]
[1625502449730,6.91336175,33664.0,33663.0,0.24057544]
[1625502449931,6.91336175,33664.0,33663.0,5.24747544]
[1625502453898,6.91336175,33664.0,33663.0,0.24057544]
[1625502454393,8.66980194,33664.0,33663.0,0.24057544]
[1625502454995,6.91336175,33664.0,33663.0,0.24057544]
[1625502456043,8.66964269,33664.0,33663.0,0.24057544]
[1625502456496,6.91336175,33664.0,33663.0,0.24057544]
[1625502457950,11.02956175,33664.0,33663.0,0.24057544]
[1625502458253,11.11766175,33664.0,33663.0,0.24057544]
[1625502458399,11.02956175,33664.0,33663.0,0.24057544]
[1625502461744,11.06477053,33664.0,33660.0,0.24057544]
[1625502462011,0.05152124,33663.0,33660.0,0.24057544]
[1625502462127,0.11052124,33663.0,33660.0,0.18157544]
[1625502462355,8.25423801,33661.0,33660.0,0.18157544]
[1625502462555,8.37223801,33661.0,33660.0,0.18157544]
[1625502462754,8.37223801,33661.0,33655.0,0.52678783]
[1625502462755,8.42376174,33661.0,33655.0,0.52678783]
[1625502463056,0.05152473,33660.0,33653.0,0.52664059]
[1625502463258,0.16952473,33660.0,33653.0,0.52664059]
[1625502463569,0.72172632,33654.0,33653.0,0.52664059]
[1625502463672,0.93201632,33654.0,33653.0,0.51674059]
[1625502463759,1.05001632,33654.0,33653.0,0.51674059]
[1625502463859,1.06634836,33654.0,33653.0,0.51674059]
[1625502464011,4.04611605,33654.0,33652.0,0.70218746]
[1625502464109,4.8863,33653.0,33649.0,0.35113065]
[1625502464306,5.0043,33653.0,33649.0,0.35113065]
[1625502464407,0.01636216,33652.0,33649.0,0.35113065]
[1625502464510,0.13436216,33652.0,33649.0,0.35113065]
[1625502464609,5.95135776,33650.0,33644.0,0.35117818]
[1625502464808,6.01035776,33650.0,33644.0,0.35117818]
[1625502464908,0.01636244,33649.0,33644.0,0.35117818]
[1625502465010,0.07536244,33649.0,33644.0,0.35117818]
[1625502465110,4.3706581,33645.0,33643.0,0.35078066]
[1625502465211,4.7574981,33645.0,33643.0,0.35078066]
[1625502465310,8.4104981,33645.0,33643.0,0.35078066]
[1625502465560,4.85166971,33644.0,33643.0,0.35078066]
[1625502465761,4.96966971,33644.0,33643.0,0.35078066]
[1625502466061,4.98598085,33644.0,33643.0,0.35078066]
[1625502466163,4.98598085,33644.0,33641.0,0.59137507]
[1625502466512,4.96966971,33644.0,33641.0,0.59137507]
[1625502466614,4.36677754,33642.0,33641.0,0.59137507]
[1625502466813,4.42577754,33642.0,33641.0,0.59137507]
[1625502466912,4.48477754,33642.0,33641.0,0.59137507]
[1625502467120,4.48477754,33642.0,33641.0,0.24057544]
[1625502469022,1.86478088,33642.0,33641.0,0.59075129]
[1625502469925,1.86478088,33642.0,33641.0,0.24057544]
[1625502470425,1.86478088,33642.0,33641.0,0.59073849]
[1625502470876,1.80578088,33642.0,33641.0,0.59073849]
[1625502470976,1.74678088,33642.0,33641.0,0.59073849]
[1625502471425,0.75774728,33642.0,33641.0,0.24057544]
[1625502471878,0.75874728,33642.0,33641.0,0.24057544]
[1625502472230,0.69974728,33642.0,33641.0,0.24057544]
[1625502472479,0.001,33642.0,33641.0,0.59055105]
[1625502472980,0.34835659,33642.0,33641.0,0.59055105]
[1625502473129,0.64557659,33642.0,33641.0,0.59055105]
[1625502473279,0.29822,33642.0,33641.0,0.24057544]
[1625502473982,0.41622,33642.0,33641.0,0.24057544]
[1625502474233,1.11074986,33642.0,33641.0,0.24057544]
[1625502474983,1.05174986,33642.0,33641.0,0.24057544]
[1625502475533,0.35722,33642.0,33641.0,0.24057544]
[1625502475933,0.70464599,33642.0,33641.0,0.24057544]
[1625502476837,0.70464599,33642.0,33641.0,0.59030025]
[1625502477291,0.70464599,33642.0,33641.0,0.24057544]
[1625502477788,0.35722,33642.0,33641.0,0.24057544]
[1625502478139,0.41622,33642.0,33641.0,0.24057544]
[1625502478241,0.35722,33642.0,33641.0,0.24057544]
[1625502479543,0.41622,33642.0,33641.0,0.24057544]
[1625502479895,0.41622,33642.0,33641.0,0.59017497]
[1625502480645,0.35722,33642.0,33641.0,0.59017497]
[1625502480748,0.06,33642.0,33641.0,0.59017497]
[1625502482200,0.119,33642.0,33641.0,0.59017497]
[1625502483103,0.119,33642.0,33641.0,0.24057544]
[1625502483302,0.06,33642.0,33641.0,0.24057544]
[1625502483404,0.119,33642.0,33641.0,0.24057544]
[1625502487671,0.119,33642.0,33640.0,0.3495552]
[1625502487791,0.46634058,33642.0,33639.0,0.64247857]
[1625502487990,0.48267198,33642.0,33639.0,0.34957857]
[1625502488336,2.94592972,33640.0,33634.0,0.01]
[1625502488513,3.00492972,33640.0,33634.0,0.01]
[1625502488613,3.06392972,33640.0,33634.0,0.01]
[1625502488815,0.6927327,33636.0,33634.0,0.01]
[1625502488914,0.9424827,33636.0,33634.0,0.01]
[1625502489014,5.0581,33635.0,33634.0,0.01]
[1625502489114,5.1171,33635.0,33634.0,0.01]
[1625502489214,5.1761,33635.0,33634.0,0.01]
[1625502489316,6.92204127,33635.0,33634.0,0.01]
[1625502489670,7.64376759,33635.0,33634.0,0.01]
[1625502490175,7.62743369,33635.0,33634.0,0.01]
[1625502491474,7.64369962,33635.0,33634.0,0.01]
[1625502492276,7.62743369,33635.0,33634.0,0.01]
[1625502492630,7.71713369,33635.0,33634.0,0.01]
[1625502492733,7.62743369,33635.0,33634.0,0.01]
[1625502493631,7.6437414,33635.0,33634.0,0.01]
[1625502494115,7.6437414,33635.0,33623.0,0.52424941]
[1625502494116,10.82156744,33635.0,33623.0,0.52424941]
[1625502494185,0.059,33633.0,33623.0,0.52424941]
[1625502494484,0.01631012,33632.0,33623.0,0.52424941]
[1625502494684,0.13431012,33632.0,33623.0,0.52424941]
[1625502494784,0.13431012,33632.0,33619.0,1.22324863]
[1625502494785,0.41633829,33625.0,33619.0,0.5238669]
[1625502494883,4.3144,33620.0,33619.0,0.5238669]
[1625502495106,4.3734,33620.0,33619.0,0.5238669]
[1625502495188,4.4324,33620.0,33616.0,1.47726518]
[1625502495485,4.4324,33620.0,33616.0,0.52396518]
[1625502495685,0.118,33620.0,33616.0,0.52396518]
[1625502495789,0.72172632,33617.0,33615.0,0.17466448]
[1625502495985,1.01346632,33617.0,33615.0,0.17466448]
[1625502496085,1.07246632,33617.0,33615.0,0.17466448]
[1625502496187,4.0578,33616.0,33615.0,0.17466448]
[1625502496286,4.1758,33616.0,33615.0,0.17466448]
[1625502496536,0.118,33616.0,33613.0,0.52342798]
[1625502496849,0.059,33616.0,33613.0,0.52342798]
[1625502496990,0.118,33616.0,33613.0,0.52342798]
[1625502497090,4.8172,33615.0,33613.0,0.17447599]
[1625502497192,4.9352,33615.0,33613.0,0.17447599]
[1625502497440,4.9352,33615.0,33612.0,0.5234735]
[1625502497740,0.24057544,33613.0,33612.0,0.5234735]
[1625502497845,0.29957544,33613.0,33612.0,0.5234735]
[1625502497944,0.24057544,33613.0,33612.0,0.5234735]
[1625502498043,0.24057544,33613.0,33612.0,0.17449374]
[1625502498745,0.24057544,33613.0,33612.0,0.23349374]
[1625502498845,0.24057544,33613.0,33612.0,1.7433923]
[1625502498944,0.24057544,33613.0,33612.0,1.8023923]
[1625502499044,0.24057544,33613.0,33612.0,1.7433923]
[1625502499899,0.24057544,33613.0,33612.0,1.8023923]
[1625502500000,0.24057544,33617.0,33612.0,2.0952923]
[1625502500099,0.24057544,33617.0,33612.0,2.4932023]
[1625502500452,0.24057544,33617.0,33616.0,1.74321735]
[1625502500548,0.24057544,33617.0,33616.0,1.80221735]
[1625502500648,0.24057544,33617.0,33616.0,1.86121735]
[1625502500849,0.24057544,33617.0,33616.0,1.80221735]
[1625502500948,0.29957544,33617.0,33616.0,1.74321735]
[1625502501050,0.35857544,33617.0,33616.0,1.74321735]
[1625502501148,0.29957544,33617.0,33616.0,1.74321735]
[1625502501249,0.29957544,33617.0,33616.0,0.69728694]
[1625502501650,0.29957544,33617.0,33615.0,0.52280121]
[1625502501850,0.29957544,33617.0,33616.0,0.24057544]
[1625502502250,0.24057544,33617.0,33616.0,0.24057544]
[1625502502350,0.35857544,33617.0,33616.0,0.24057544]
[1625502502450,0.29957544,33617.0,33616.0,0.24057544]
[1625502502955,0.24057544,33617.0,33616.0,0.24057544]
[1625502504105,0.24057544,33617.0,33616.0,0.29957544]
[1625502504306,0.24057544,33617.0,33616.0,0.35857544]
[1625502504658,0.24057544,33617.0,33616.0,0.53277443]
[1625502505709,0.24057544,33617.0,33616.0,0.47377443]
[1625502506160,0.24057544,33617.0,33616.0,0.29957544]
[1625502506409,4.55657544,33617.0,33616.0,0.24057544]
[1625502506510,4.61557544,33617.0,33616.0,0.24057544]
[1625502507662,4.88774544,33617.0,33616.0,0.24057544]
[1625502508460,4.82874544,33617.0,33616.0,0.24057544]
[1625502508711,4.88774544,33617.0,33616.0,0.24057544]
[1625502509614,4.82874544,33617.0,33616.0,0.24057544]
[1625502509715,4.55657544,33617.0,33616.0,0.24057544]
[1625502509876,4.49757544,33617.0,33616.0,0.24057544]
[1625502510718,4.55657544,33617.0,33616.0,0.24057544]
[1625502511067,4.49757544,33617.0,33616.0,0.24057544]
[1625502511367,4.49757544,33617.0,33616.0,0.29957544]
[1625502511916,4.49757544,33617.0,33616.0,0.24057544]
[1625502512017,0.29957544,33617.0,33616.0,0.24057544]
[1625502512534,0.35857544,33617.0,33616.0,0.24057544]
[1625502512619,0.29957544,33617.0,33616.0,0.24057544]
[1625502512719,0.35857544,33617.0,33616.0,0.24057544]
[1625502513070,0.29957544,33617.0,33616.0,0.24057544]
[1625502513770,0.35857544,33617.0,33616.0,0.24057544]
[1625502515477,0.24057544,33617.0,33616.0,0.24057544]
[1625502518532,0.24057544,33617.0,33616.0,0.2443896]
[1625502518636,0.24057544,33617.0,33616.0,0.3033896]
[1625502518742,0.24057544,33617.0,33616.0,0.3623896]
[1625502519182,0.24057544,33617.0,33616.0,2.10597612]
[1625502519783,0.24057544,33623.0,33616.0,2.10597612]
[1625502519987,0.24057544,33623.0,33622.0,0.24057544]
[1625502520084,0.24057544,33623.0,33622.0,0.54035544]
[1625502520484,0.24057544,33623.0,33622.0,0.54416901]
[1625502520986,0.29957544,33623.0,33622.0,0.54035544]
[1625502521285,0.24057544,33623.0,33622.0,0.54035544]
[1625502522089,0.24057544,33623.0,33622.0,0.54416915]
[1625502523442,0.24057544,33623.0,33622.0,0.71876451]
[1625502523894,0.24057544,33623.0,33622.0,0.63146853]
[1625502524994,0.24057544,33623.0,33622.0,0.80609893]
[1625502525996,0.24057544,33623.0,33622.0,1.15535529]
[1625502526853,0.24057544,33623.0,33622.0,0.80609893]
[1625502527302,0.24057544,33623.0,33622.0,1.15540734]
[1625502528355,0.24057544,33623.0,33622.0,1.06810796]
[1625502529010,0.24057544,33623.0,33622.0,0.80614199]
[1625502531058,0.24057544,33623.0,33622.0,1.15562853]
[1625502531412,0.24057544,33623.0,33622.0,0.89365569]
[1625502532013,0.24057544,33623.0,33622.0,0.54416915]
[1625502532461,0.24057544,33623.0,33622.0,0.59392515]
[1625502534724,0.24057544,33623.0,33622.0,0.94389562]
[1625502535320,0.24057544,33623.0,33622.0,0.7690251]
[1625502536777,0.29957544,33623.0,33622.0,0.7690251]
[1625502536878,0.24057544,33623.0,33622.0,0.7690251]
[1625502538080,0.32688017,33623.0,33622.0,0.85651213]
[1625502538479,0.24057544,33623.0,33622.0,0.7690251]
[1625502538883,0.24057544,33623.0,33622.0,0.24438915]
[1625502540136,0.24057544,33623.0,33622.0,0.94467856]
[1625502542440,0.32693401,33623.0,33622.0,1.99580309]
[1625502544292,0.4996486,33623.0,33622.0,1.99580309]
[1625502544392,0.51597685,33623.0,33622.0,1.99580309]
[1625502544793,0.7751495,33623.0,33622.0,1.99580309]
[1625502545994,0.60243491,33623.0,33622.0,1.99580309]
[1625502546847,0.94903608,33623.0,33622.0,3.22476241]
[1625502549102,0.94903608,33623.0,33622.0,4.62996019]
[1625502550455,0.94903608,33623.0,33622.0,3.22476241]
[1625502550456,1.98731036,33623.0,33622.0,3.22476241]
[1625502550905,1.98731036,33623.0,33622.0,4.63039141]
[1625502551255,1.98731036,33623.0,33622.0,3.22476241]
[1625502551356,2.24475036,33623.0,33622.0,3.22476241]
[1625502553916,2.76415974,33623.0,33622.0,5.15820355]
[1625502554313,2.76415974,33623.0,33622.0,3.75206454]
[1625502555468,3.97481275,33623.0,33622.0,3.75206454]
[1625502559278,3.97481275,33623.0,33622.0,5.15854631]
[1625502559576,3.97481275,33623.0,33622.0,3.75206454]
[1625502560686,4.03381275,33623.0,33622.0,3.75206454]
[1625502560826,4.09281275,33623.0,33622.0,3.75206454]
[1625502561027,5.47703905,33623.0,33622.0,2.28252978]
[1625502561777,7.03243616,33623.0,33621.0,0.61546909]
[1625502562127,0.24057544,33622.0,33621.0,0.61546909]
[1625502562231,6.6915358,33622.0,33620.0,0.8559405]
[1625502562328,6.80210727,33622.0,33620.0,0.8559405]
[1625502562581,6.40573092,33621.0,33620.0,0.24057544]
[1625502562696,6.46473092,33621.0,33620.0,0.24057544]
[1625502562780,6.52373092,33621.0,33620.0,0.24057544]
[1625502563282,6.52373092,33621.0,33618.0,0.61537849]
[1625502563632,0.01632271,33620.0,33618.0,0.26373456]
[1625502563732,0.07532271,33620.0,33618.0,0.26373456]
[1625502563834,0.13432271,33620.0,33618.0,0.26373456]
[1625502564038,6.38461322,33619.0,33618.0,0.08791152]
[1625502564138,6.68418866,33619.0,33618.0,0.08791152]
[1625502564236,6.75951127,33619.0,33618.0,0.08791152]
[1625502565140,6.75951127,33619.0,33616.0,0.85573951]
[1625502565489,0.01632284,33618.0,33616.0,0.85573951]
[1625502565691,0.13432284,33618.0,33616.0,0.85573951]
[1625502565791,6.38110997,33617.0,33616.0,0.24057544]
[1625502565890,6.44010997,33617.0,33616.0,0.24057544]
[1625502565990,6.49910997,33617.0,33616.0,0.24057544]
[1625502566091,6.51543297,33617.0,33616.0,0.24057544]
[1625502566191,6.75600841,33617.0,33616.0,0.24057544]
[1625502566290,5.20392575,33617.0,33616.0,0.24057544]
[1625502567893,5.18760275,33617.0,33616.0,0.24057544]
[1625502567996,5.32727544,33617.0,33611.0,0.24057544]
[1625502568195,0.24057544,33612.0,33611.0,0.24057544]
[1625502568298,0.47673544,33612.0,33611.0,0.24057544]
[1625502568397,0.53573544,33612.0,33611.0,0.24057544]
[1625502568496,2.7173478,33612.0,33611.0,2.52360693]
[1625502568696,2.7763478,33612.0,33611.0,2.52360693]
[1625502570000,2.7173478,33612.0,33611.0,2.52360693]
[1625502570551,2.7173478,33612.0,33611.0,3.75291751]
[1625502570650,2.7173478,33612.0,33611.0,3.84241751]
[1625502570749,2.7173478,33612.0,33611.0,3.75291751]
[1625502570951,1.68328529,33612.0,33611.0,3.75291751]
[1625502571200,1.44712529,33612.0,33611.0,3.75291751]
[1625502571450,0.75769285,33612.0,33611.0,3.75291751]
[1625502571649,0.75769285,33612.0,33611.0,3.75673168]
[1625502571852,0.93031078,33612.0,33611.0,3.75673168]
[1625502571951,0.84465197,33612.0,33611.0,5.1573493]
[1625502572051,0.90365197,33612.0,33611.0,5.1573493]
[1625502572154,0.84465197,33612.0,33611.0,5.1573493]
[1625502572302,0.75794418,33612.0,33611.0,3.75291751]
[1625502572801,1.50654077,33612.0,33611.0,3.75291751]
[1625502572902,1.44754077,33612.0,33611.0,3.75291751]
[1625502573152,1.44754077,33612.0,33611.0,2.52360693]
[1625502574357,1.50654077,33612.0,33611.0,2.52360693]
[1625502575258,2.53985793,33612.0,33611.0,1.46990009]